bitfinex/quotes_SOLUSD_20251117
["timestamp","ask_amount","ask_price","bid_price","bid_amount"]
[1763365008134,2.18626543,141.79,141.75,0.68]
[1763365008823,0.4,141.79,141.75,0.68]
[1763365009640,0.4,141.79,141.75,2.46626543]
[1763365010117,0.4,141.79,141.7,7.05715757]
[1763365010319,1.78626543,141.78,141.74,22.6512]
[1763365010947,0.4,141.77,141.74,0.68]
[1763365011147,0.4,141.77,141.71,22.6512]
[1763365011346,1.78626543,141.74,141.67,0.78]
[1763365011537,101.38,141.77,141.67,0.78]
[1763365011538,1.78626543,141.73,141.68,2.46626543]
[1763365011854,24.43746543,141.74,141.68,2.46626543]
[1763365012217,2.18626543,141.73,141.67,1.88626543]
[1763365012423,1.78626543,141.72,141.67,2.56626543]
[1763365012761,2.18626543,141.72,141.67,2.56626543]
[1763365014222,0.4,141.71,141.67,2.56626543]
[1763365014428,0.4,141.71,141.67,1.88626543]
[1763365014745,2.18626543,141.71,141.67,0.1]
[1763365014921,1.78626543,141.68,141.67,0.1]
[1763365015322,2.18626543,141.68,141.67,0.1]
[1763365016264,1.78626543,141.68,141.67,0.1]
[1763365016421,0.4,141.69,141.67,0.1]
[1763365016827,1.78626543,141.7,141.67,0.1]
[1763365017038,0.4,141.7,141.67,0.1]
[1763365018228,100.98,141.71,141.68,0.68]
[1763365018434,100.98,141.7,141.68,2.46626543]
[1763365018641,100.98,141.7,141.68,0.68]
[1763365019431,100.98,141.7,141.68,2.46626543]
[1763365019858,100.98,141.7,141.67,0.1]
[1763365019859,100.98,141.7,141.69,2.46626543]
[1763365021469,22.6512,141.75,141.69,2.46626543]
[1763365021470,100.98,141.75,141.69,2.46626543]
[1763365021658,100.98,141.74,141.71,1.78626543]
[1763365021855,100.98,141.74,141.72,0.67]
[1763365022162,100.98,141.74,141.72,2.45626543]
[1763365023568,100.98,141.74,141.71,2.45626543]
[1763365024239,100.98,141.74,141.71,1.78626543]
[1763365024443,100.98,141.74,141.72,0.67]
[1763365026943,100.98,141.74,141.73,1.78626543]
[1763365027441,100.98,141.74,141.73,2.45626543]
[1763365027645,100.98,141.74,141.73,1.78626543]
[1763365028466,100.98,141.74,141.72,2.45626543]
[1763365030590,100.98,141.74,141.72,0.67]
[1763365030792,100.98,141.74,141.72,2.45626543]
[1763365031484,100.98,141.74,141.72,1.78626543]
[1763365032091,100.98,141.74,141.72,2.45626543]
[1763365034602,100.98,141.74,141.7,22.6512]
[1763365034603,100.98,141.74,141.73,2.45626543]
[1763365035103,100.98,141.74,141.73,1.78626543]
[1763365038293,100.98,141.74,141.73,2.45626543]
[1763365039700,111.16882769,141.82,141.73,25.10746543]
[1763365039900,100.98,141.81,141.78,1.78626543]
[1763365040214,0.4,141.82,141.79,1.78626543]
[1763365041099,22.8512,141.84,141.8,0.67]
[1763365041298,0.2,141.84,141.78,7.14506172]
[1763365041499,1.78626543,141.82,141.77,1.78626543]
[1763365041797,2.18626543,141.81,141.75,2.45626543]
[1763365041974,2.18626543,141.81,141.76,1.78626543]
[1763365042174,0.4,141.8,141.76,1.78626543]
[1763365043201,0.4,141.8,141.76,0.67]
[1763365043379,0.4,141.8,141.77,1.78626543]
[1763365043994,0.4,141.8,141.76,2.45626543]
[1763365044197,0.4,141.8,141.76,1.78626543]
[1763365044793,17.13388941,141.84,141.79,2.79172532]
[1763365044794,0.4,141.83,141.79,2.79172532]
[1763365045105,0.4,141.83,141.77,0.67]
[1763365045290,0.4,141.83,141.8,2.79172532]
[1763365045682,0.6,141.84,141.8,3.46172532]
[1763365045896,0.2,141.84,141.82,2.79172532]
[1763365046100,0.2,141.84,141.81,0.67]
[1763365046288,0.2,141.84,141.83,2.79172532]
[1763365046888,0.2,141.84,141.83,3.46172532]
[1763365049202,0.2,141.84,141.83,6.25345064]
[1763365049386,0.2,141.84,141.83,0.67]
[1763365049591,0.2,141.84,141.83,3.46172532]
[1763365049806,0.2,141.84,141.83,0.67]
[1763365050010,0.2,141.84,141.83,3.46172532]
[1763365050491,0.2,141.84,141.83,26.11292532]
[1763365050810,0.2,141.84,141.83,6.25345064]
[1763365051393,0.2,141.84,141.83,16.04227833]
[1763365054498,0.2,141.84,141.83,23.09297282]
[1763365054712,0.2,141.84,141.83,16.04227833]
[1763365055595,0.2,141.84,141.83,38.69347833]
[1763365055900,0.2,141.84,141.83,16.04227833]
[1763365058216,0.2,141.84,141.83,2.79172532]
[1763365058517,0.2,141.84,141.83,3.47172532]
[1763365058915,0.6,141.84,141.82,2.79172532]
[1763365059129,0.2,141.84,141.82,2.79172532]
[1763365059328,0.6,141.84,141.82,2.79172532]
[1763365059628,0.2,141.84,141.82,2.79172532]
[1763365059814,0.6,141.84,141.82,2.79172532]
[1763365060135,0.6,141.84,141.81,2.79172532]
[1763365060535,0.2,141.84,141.81,2.79172532]
[1763365060826,0.2,141.86,141.85,22.6512]
[1763365061039,0.8,141.86,141.84,2.79172532]
[1763365061242,0.8,141.86,141.83,2.79172532]
[1763365061403,0.8,141.86,141.82,23.3312]
[1763365061607,0.2,141.86,141.84,2.79172532]
[1763365062624,0.8,141.86,141.83,2.79172532]
[1763365063119,0.2,141.86,141.81,0.68]
[1763365063434,0.6,141.85,141.82,2.79172532]
[1763365063809,0.6,141.85,141.81,25.44292532]
[1763365064112,0.6,141.85,141.78,2.79172532]
[1763365064113,2.79172532,141.83,141.78,2.79172532]
[1763365064519,0.6,141.82,141.79,2.79172532]
[1763365065224,0.6,141.85,141.81,2.79172532]
[1763365065538,3.39172532,141.85,141.8,2.79172532]
[1763365066031,0.6,141.84,141.81,2.79172532]
[1763365066209,0.2,141.86,141.82,2.79172532]
[1763365066409,0.6,141.85,141.82,2.79172532]
[1763365066639,0.6,141.85,141.79,0.68]
[1763365066859,2.79172532,141.82,141.76,0.68]
[1763365067148,2.79172532,141.82,141.77,2.79172532]
[1763365067448,0.6,141.81,141.77,2.79172532]
[1763365067635,3.39172532,141.81,141.77,2.79172532]
[1763365068147,0.6,141.8,141.76,2.79172532]
[1763365068317,0.6,141.8,141.71,2.79172532]
[1763365068318,2.79172532,141.77,141.71,2.79172532]
[1763365068511,2.79172532,141.77,141.72,2.79172532]
[1763365068825,3.39172532,141.77,141.72,2.79172532]
[1763365069142,0.6,141.76,141.72,2.79172532]
[1763365069451,3.39172532,141.79,141.74,2.79172532]
[1763365069743,0.6,141.79,141.76,2.79172532]
[1763365069910,0.6,141.78,141.76,2.79172532]
[1763365070533,0.6,141.78,141.75,2.79172532]
[1763365070812,0.6,141.78,141.74,2.79172532]
[1763365071821,12.58055301,141.76,141.71,2.79172532]
[1763365072252,2.82875428,141.82,141.72,0.68]
[1763365072410,3.39172532,141.79,141.74,2.79172532]
[1763365072615,10.38882769,141.78,141.74,2.79172532]
[1763365072824,13.18055301,141.78,141.74,2.79172532]
[1763365073030,0.6,141.77,141.74,2.79172532]
[1763365073945,0.6,141.77,141.73,2.79172532]
[1763365075237,22.6512,141.81,141.74,0.68]
[1763365075537,0.6,141.82,141.8,2.79172532]
[1763365075744,0.6,141.82,141.79,2.79172532]
[1763365076344,3.39172532,141.82,141.77,2.79172532]
[1763365076535,0.6,141.81,141.77,2.79172532]
[1763365077144,0.6,141.81,141.78,2.79172532]
[1763365077345,0.6,141.81,141.77,2.79172532]
[1763365078661,0.6,141.81,141.73,23.3312]
[1763365078861,17.5711595,141.8,141.68,9.78882769]
[1763365079066,17.5711595,141.8,141.75,7.78233181]
[1763365079244,10.38882769,141.8,141.77,7.78233181]
[1763365079564,0.6,141.8,141.78,7.78233181]
[1763365079744,22.6512,141.81,141.78,7.78233181]
[1763365080063,23.2512,141.81,141.78,7.78233181]
[1763365080267,7.78233181,141.83,141.78,7.78233181]
[1763365080436,7.78233181,141.83,141.71,32.44002769]
[1763365080437,9.78882769,141.84,141.81,7.78233181]
[1763365080640,10.38882769,141.84,141.81,7.78233181]
[1763365080839,0.6,141.83,141.81,7.78233181]
[1763365081348,9.78882769,141.82,141.75,23.3512]
[1763365081557,9.78882769,141.82,141.78,7.78233181]
[1763365081760,0.6,141.81,141.78,7.78233181]
[1763365082749,17.5711595,141.8,141.72,22.6512]
[1763365082948,108.76233181,141.79,141.74,7.78233181]
[1763365083153,109.36233181,141.79,141.74,7.78233181]
[1763365083354,0.6,141.78,141.75,7.78233181]
[1763365085670,0.6,141.78,141.76,7.78233181]
[1763365086268,100.98,141.79,141.76,7.78233181]
[1763365086458,0.6,141.78,141.76,7.78233181]
[1763365086766,0.6,141.78,141.75,7.78233181]
[1763365087957,9.78882769,141.76,141.72,7.78233181]
[1763365088462,0.6,141.75,141.71,7.78233181]
[1763365088767,0.6,141.75,141.72,7.78233181]
[1763365089375,108.76233181,141.77,141.73,7.78233181]
[1763365089376,101.58,141.77,141.73,7.78233181]
[1763365089550,100.98,141.77,141.73,7.78233181]
[1763365089752,0.6,141.76,141.72,0.7]
[1763365090074,0.6,141.76,141.73,7.78233181]
[1763365090549,10.38882769,141.76,141.72,7.78233181]
[1763365090957,0.6,141.75,141.72,7.78233181]
[1763365091158,9.78882769,141.74,141.7,7.78233181]
[1763365091388,17.5711595,141.74,141.69,7.78233181]
[1763365091567,0.6,141.73,141.69,7.78233181]
[1763365092762,0.6,141.73,141.7,7.78233181]
[1763365093278,110.76882769,141.74,141.71,7.78233181]
[1763365093279,100.98,141.74,141.71,7.78233181]
[1763365093467,101.58,141.74,141.71,7.78233181]
[1763365095450,100.98,141.73,141.69,22.6512]
[1763365095773,100.98,141.73,141.72,8.48233181]
[1763365100881,100.98,141.73,141.72,3.49418026]
[1763365105303,100.98,141.73,141.72,6.28836052]
[1763365106706,100.98,141.77,141.72,6.28836052]
[1763365106994,100.98,141.77,141.76,1.78740115]
[1763365107494,100.98,141.77,141.76,2.46740115]
[1763365107878,100.98,141.77,141.76,1.78740115]
[1763365108601,100.98,141.77,141.76,2.46740115]
[1763365118216,101.58,141.81,141.76,2.46740115]
[1763365118498,100.98,141.8,141.79,1.78740115]
[1763365119108,100.98,141.8,141.79,2.44740115]
[1763365121995,100.98,141.8,141.78,1.78740115]
[1763365123609,101.58,141.8,141.77,1.78740115]
[1763365123916,100.98,141.8,141.76,24.43860115]
[1763365124113,100.98,141.8,141.75,1.78740115]
[1763365124114,0.6,141.79,141.75,1.78740115]
[1763365124611,0.6,141.79,141.75,2.44740115]
[1763365124814,0.6,141.79,141.76,1.78740115]
[1763365125116,0.6,141.79,141.77,1.78740115]
[1763365125510,100.98,141.8,141.77,1.78740115]
[1763365125714,0.6,141.79,141.77,1.78740115]
[1763365127416,0.6,141.79,141.76,1.78740115]
[1763365129418,0.6,141.79,141.75,1.78740115]
[1763365130106,0.6,141.79,141.74,2.44740115]
[1763365130920,0.6,141.79,141.75,1.78740115]
[1763365131419,100.98,141.78,141.75,1.78740115]
[1763365132324,100.98,141.78,141.74,2.44740115]
[1763365132501,101.58,141.78,141.75,1.78740115]
[1763365132709,100.98,141.78,141.75,1.78740115]
[1763365132908,101.58,141.78,141.75,1.78740115]
[1763365134518,100.98,141.78,141.75,2.44740115]
[1763365134829,101.58,141.78,141.75,2.44740115]
[1763365135014,100.98,141.78,141.77,1.78740115]
[1763365136620,0.6,141.8,141.77,1.78740115]
[1763365136805,100.98,141.81,141.77,2.44740115]
[1763365137010,101.58,141.81,141.77,2.44740115]
[1763365138299,0.6,141.8,141.77,1.78740115]
[1763365139123,0.6,141.8,141.76,2.44740115]
[1763365139923,0.6,141.8,141.75,1.78740115]
[1763365140129,100.98,141.79,141.75,1.78740115]
[1763365140308,102.76740115,141.79,141.74,1.78740115]
[1763365140517,0.6,141.78,141.75,1.78740115]
[1763365141104,0.6,141.78,141.72,0.66]
[1763365141424,0.6,141.78,141.73,1.78740115]
[1763365141425,100.98,141.77,141.73,1.78740115]
[1763365141930,101.58,141.76,141.67,0.1]
[1763365142121,100.98,141.75,141.71,1.78740115]
[1763365142426,103.36740115,141.75,141.7,1.78740115]
[1763365142633,0.6,141.74,141.7,1.78740115]
[1763365143019,100.98,141.75,141.71,1.78740115]
[1763365143337,101.58,141.75,141.71,2.44740115]
[1763365143503,0.6,141.74,141.71,1.78740115]
[1763365144608,0.6,141.74,141.7,0.66]
[1763365144803,0.6,141.74,141.71,1.78740115]
[1763365145925,100.98,141.75,141.72,2.44740115]
[1763365146130,100.98,141.75,141.73,1.78740115]
[1763365146532,101.58,141.75,141.73,1.78740115]
[1763365147730,100.98,141.75,141.73,1.78740115]
[1763365148119,100.98,141.74,141.73,1.78740115]
[1763365149831,101.58,141.74,141.71,1.78740115]
[1763365150030,0.6,141.73,141.71,1.78740115]
[1763365150429,100.98,141.74,141.71,1.78740115]
[1763365150636,101.58,141.74,141.71,1.78740115]
[1763365151136,101.58,141.74,141.71,2.44740115]
[1763365151532,0.6,141.73,141.71,1.78740115]
[1763365152639,0.6,141.73,141.69,1.78740115]
[1763365153141,1.78740115,141.71,141.67,0.1]
[1763365153336,9.78882769,141.7,141.67,0.1]
[1763365153540,12.17622884,141.7,141.67,0.1]
[1763365153725,0.6,141.69,141.67,0.1]
[1763365156121,11.57622884,141.7,141.67,0.1]
[1763365156122,9.78882769,141.7,141.67,0.1]
[1763365156442,9.78882769,141.71,141.68,1.78740115]
[1763365156645,0.6,141.7,141.67,1.88740115]
[1763365156853,10.38882769,141.71,141.67,1.88740115]
[1763365157019,0.6,141.7,141.67,1.88740115]
[1763365157833,124.2312,141.72,141.68,2.50740115]
[1763365158012,101.58,141.72,141.68,2.50740115]
[1763365158216,100.98,141.72,141.68,2.50740115]
[1763365158418,0.6,141.71,141.68,2.50740115]
[1763365158616,100.98,141.72,141.68,2.50740115]
[1763365158857,100.98,141.72,141.7,1.78740115]
[1763365159020,0.6,141.74,141.7,2.50740115]
[1763365160329,2.38740115,141.74,141.7,0.72]
[1763365161425,0.6,141.74,141.7,2.50740115]
[1763365163047,22.6512,141.75,141.71,2.50740115]
[1763365163348,100.98,141.74,141.71,2.50740115]
[1763365163546,100.98,141.74,141.72,0.72]
[1763365163721,100.98,141.74,141.7,2.50740115]
[1763365163927,101.58,141.74,141.7,2.50740115]
[1763365164927,101.58,141.74,141.71,0.72]
[1763365165126,100.98,141.74,141.71,0.72]
[1763365165748,100.98,141.74,141.71,2.50740115]
[1763365166151,100.98,141.74,141.72,0.72]
[1763365166324,100.98,141.74,141.72,2.50740115]
[1763365167433,100.98,141.74,141.72,1.78740115]
[1763365167649,100.98,141.74,141.73,2.50740115]
[1763365167951,7.1496046,141.84,141.73,2.50740115]
[1763365167952,102.76740115,141.79,141.73,2.50740115]
[1763365168136,100.98,141.79,141.75,1.78740115]
[1763365168532,101.58,141.79,141.75,2.50740115]
[1763365168926,101.58,141.79,141.75,3.51375557]
[1763365169124,100.98,141.79,141.75,0.72]
[1763365169335,0.6,141.78,141.75,0.72]
[1763365169742,101.58,141.79,141.75,3.51375557]
[1763365169945,100.98,141.79,141.75,3.51375557]
[1763365170137,100.98,141.79,141.76,3.51375557]
[1763365171236,101.58,141.79,141.75,2.79375557]
[1763365171437,101.58,141.79,141.75,3.48375557]
[1763365173030,100.98,141.79,141.76,3.48375557]
[1763365173530,101.58,141.79,141.76,2.79375557]
[1763365173752,101.58,141.79,141.75,2.79375557]
[1763365174147,101.58,141.79,141.75,3.48375557]
[1763365174553,100.98,141.78,141.75,3.48375557]
[1763365175369,100.98,141.78,141.75,2.79375557]
[1763365175561,100.98,141.78,141.75,3.48375557]
[1763365175856,100.98,141.78,141.77,2.79375557]
[1763365176250,100.98,141.78,141.77,3.48375557]
[1763365178752,100.98,141.81,141.77,3.48375557]
[1763365178959,100.98,141.81,141.8,2.79375557]
[1763365179173,100.98,141.81,141.79,2.79375557]
[1763365179681,100.98,141.81,141.79,3.48375557]
[1763365180183,100.98,141.81,141.8,0.69]
[1763365183499,100.98,141.84,141.8,3.48375557]
[1763365183663,100.98,141.83,141.81,0.69]
[1763365183857,100.98,141.83,141.8,3.48375557]
[1763365184058,100.98,141.83,141.8,2.79375557]
[1763365184273,100.98,141.83,141.81,0.69]
[1763365184880,0.6,141.82,141.78,2.79375557]
[1763365185260,104.37375557,141.83,141.79,0.69]
[1763365185872,101.58,141.83,141.79,0.69]
[1763365186061,104.37375557,141.83,141.79,0.69]
[1763365187261,2.79375557,141.8,141.75,2.79375557]
[1763365187467,2.79375557,141.77,141.72,2.79375557]
[1763365187691,9.78882769,141.78,141.72,3.48375557]
[1763365187893,2.79375557,141.77,141.72,3.48375557]
[1763365188192,3.39375557,141.77,141.72,3.48375557]
[1763365188394,3.39375557,141.77,141.73,0.69]
[1763365189089,2.79375557,141.75,141.69,2.79375557]
[1763365189294,2.79375557,141.75,141.7,0.69]
[1763365189463,3.39375557,141.75,141.7,0.69]
[1763365189660,3.39375557,141.74,141.7,0.69]
[1763365190165,0.6,141.74,141.7,0.69]
[1763365191087,0.6,141.74,141.7,3.48375557]
[1763365193492,0.6,141.74,141.7,2.79375557]
[1763365193694,0.6,141.74,141.71,0.69]
[1763365194671,2.79375557,141.76,141.71,3.48375557]
[1763365194877,26.04495557,141.77,141.72,2.79375557]
[1763365195082,100.98,141.76,141.72,3.48375557]
[1763365195397,104.37375557,141.76,141.72,0.69]
[1763365196102,0.6,141.75,141.72,0.69]
[1763365196401,103.77375557,141.76,141.72,0.69]
[1763365196578,104.37375557,141.76,141.72,0.69]
[1763365196774,100.98,141.76,141.72,0.69]
[1763365196976,100.98,141.76,141.73,2.79375557]
[1763365197187,101.58,141.76,141.72,3.48375557]
[1763365197394,0.6,141.75,141.72,2.79375557]
[1763365197678,101.58,141.76,141.72,0.69]
[1763365198095,100.98,141.75,141.72,0.69]
[1763365198396,100.98,141.75,141.7,3.48375557]
[1763365198397,104.37375557,141.75,141.7,3.48375557]
[1763365198597,104.37375557,141.75,141.7,0.69]
[1763365198773,0.6,141.74,141.7,0.69]
[1763365198980,100.98,141.73,141.7,0.69]
[1763365201479,100.98,141.73,141.7,3.48375557]
[1763365202500,100.98,141.73,141.72,2.79375557]
[1763365202703,101.58,141.77,141.72,2.79375557]
[1763365203001,100.98,141.77,141.74,2.79375557]
[1763365203199,100.98,141.77,141.75,3.51375557]
[1763365204076,100.98,141.77,141.76,3.51375557]
[1763365204298,100.98,141.81,141.76,3.51375557]
[1763365204491,100.98,141.81,141.78,2.79375557]
[1763365204898,101.58,141.81,141.78,2.79375557]
[1763365205110,103.77375557,141.81,141.76,2.79375557]
[1763365205277,2.79375557,141.78,141.71,0.72]
[1763365205473,9.78882769,141.78,141.71,0.72]
[1763365205677,3.39375557,141.77,141.72,2.79375557]
[1763365205986,3.39375557,141.77,141.71,0.72]
[1763365205987,0.6,141.77,141.73,2.79375557]
[1763365206172,2.79375557,141.79,141.74,2.79375557]
[1763365206376,100.98,141.78,141.74,2.79375557]
[1763365206594,100.98,141.78,141.75,0.72]
[1763365206793,100.98,141.78,141.75,3.51375557]
[1763365207590,100.98,141.78,141.72,0.72]
[1763365207591,0.6,141.77,141.72,0.72]
[1763365207801,2.79375557,141.74,141.69,2.79375557]
[1763365208178,111.36882769,141.76,141.72,2.79375557]
[1763365208379,100.98,141.75,141.72,2.79375557]
[1763365208580,100.98,141.75,141.72,3.51375557]
[1763365209382,100.98,141.75,141.73,3.51375557]
[1763365209791,100.98,141.75,141.73,0.72]
[1763365210706,100.98,141.75,141.72,2.79375557]
[1763365211110,100.98,141.75,141.73,3.51375557]
[1763365211503,100.98,141.75,141.73,2.79375557]
[1763365212206,100.98,141.75,141.72,2.79375557]
[1763365212810,100.98,141.75,141.72,3.51375557]
[1763365213001,100.98,141.75,141.72,2.79375557]
[1763365213207,100.98,141.75,141.73,0.72]
[1763365213812,100.98,141.75,141.72,2.79375557]
[1763365214017,100.98,141.75,141.72,3.51375557]
[1763365214386,100.98,141.75,141.72,2.79375557]
[1763365214618,100.98,141.75,141.72,3.51375557]
[1763365216682,101.58,141.75,141.72,3.51375557]
[1763365216886,100.98,141.75,141.72,3.51375557]
[1763365217112,100.98,141.75,141.72,0.72]
[1763365217415,101.58,141.75,141.71,2.79375557]
[1763365217596,101.58,141.75,141.71,3.51375557]
[1763365217801,101.58,141.75,141.71,0.72]
[1763365218008,100.98,141.75,141.71,0.72]
[1763365218209,3.39375557,141.74,141.69,2.79375557]
[1763365218519,100.98,141.73,141.69,2.79375557]
[1763365218687,101.58,141.73,141.69,3.51375557]
[1763365219315,100.98,141.73,141.7,3.51375557]
[1763365220800,100.98,141.73,141.7,0.72]
[1763365221002,100.98,141.73,141.7,3.51375557]
[1763365221198,100.98,141.73,141.71,2.79375557]
[1763365221404,100.98,141.73,141.7,2.79375557]
[1763365221599,100.98,141.73,141.7,3.50375557]
[1763365221806,101.58,141.73,141.69,2.79375557]
[1763365222204,101.58,141.73,141.69,3.50375557]
[1763365222597,101.58,141.73,141.7,0.71]
[1763365222920,100.98,141.73,141.7,0.71]
[1763365223606,101.58,141.73,141.7,0.71]
[1763365223800,100.98,141.73,141.7,0.71]
[1763365224405,101.58,141.73,141.69,2.79375557]
[1763365224597,101.58,141.73,141.7,0.71]
[1763365225605,100.98,141.73,141.7,3.50375557]
[1763365225924,100.98,141.73,141.71,2.79375557]
[1763365226828,100.98,141.73,141.7,3.50375557]
[1763365227325,100.98,141.73,141.7,0.71]
[1763365227502,100.98,141.73,141.71,2.79375557]
[1763365227905,100.98,141.73,141.71,3.50375557]
[1763365228124,100.98,141.73,141.71,2.79375557]
[1763365228320,100.98,141.73,141.72,0.71]
[1763365228827,100.98,141.73,141.71,2.49887605]
[1763365229008,100.98,141.73,141.72,2.49887605]
[1763365230431,100.98,141.73,141.72,0.71]
[1763365230600,100.98,141.73,141.72,2.49887605]
[1763365231836,100.98,141.78,141.72,2.49887605]
[1763365232007,100.98,141.78,141.75,1.78887605]
[1763365232210,4.76285685,141.77,141.75,1.78887605]
[1763365232915,5.36285685,141.77,141.74,1.78887605]
[1763365233116,0.6,141.77,141.74,1.78887605]
[1763365233434,0.6,141.77,141.74,2.44887605]
[1763365233940,0.6,141.77,141.74,1.78887605]
[1763365234230,7.15145746,141.77,141.72,1.78887605]
[1763365234613,0.6,141.76,141.72,1.78887605]
[1763365235132,0.6,141.76,141.72,2.44887605]
[1763365235728,4.76258141,141.77,141.73,2.44887605]
[1763365235929,5.36258141,141.77,141.73,2.44887605]
[1763365236539,103.36887605,141.76,141.69,0.66]
[1763365236724,101.58,141.75,141.7,1.78887605]
[1763365237122,2.38887605,141.74,141.68,2.44887605]
[1763365237633,0.6,141.73,141.68,2.44887605]
[1763365238236,0.6,141.73,141.69,0.66]
[1763365239244,0.6,141.73,141.69,2.44887605]
[1763365242158,100.98,141.75,141.71,1.78887605]
[1763365242320,100.98,141.75,141.72,1.78887605]
[1763365242525,100.98,141.75,141.71,1.78887605]
[1763365242754,100.98,141.75,141.71,2.44887605]
[1763365242755,101.58,141.75,141.71,2.44887605]
[1763365243059,101.58,141.75,141.72,0.66]
[1763365243565,100.98,141.75,141.72,2.44887605]
[1763365249564,100.98,141.75,141.73,1.78887605]
[1763365249729,100.98,141.75,141.73,2.44887605]
[1763365250058,100.98,141.75,141.74,2.44887605]
[1763365250946,0.6,141.8,141.74,2.44887605]
[1763365251155,5.36264825,141.8,141.76,1.78887605]
[1763365251335,7.1515243,141.8,141.75,2.44887605]
[1763365251534,0.6,141.79,141.75,2.44887605]
[1763365255645,100.98,141.81,141.75,1.78887605]
[1763365255831,100.98,141.81,141.72,7.1555042]
[1763365255832,0.6,141.8,141.76,2.44887605]
[1763365256038,0.6,141.8,141.76,1.78887605]
[1763365256240,0.6,141.8,141.75,2.44887605]
[1763365256558,1.78887605,141.79,141.71,22.6512]
[1763365256766,1.78887605,141.78,141.73,1.78887605]
[1763365256968,0.6,141.78,141.74,1.78887605]
[1763365257141,100.98,141.77,141.74,2.44887605]
[1763365257761,100.98,141.77,141.75,1.78887605]
[1763365257968,100.98,141.77,141.75,2.44887605]
[1763365258557,100.98,141.77,141.76,1.78887605]
[1763365258936,100.98,141.77,141.71,22.6512]
[1763365259138,100.98,141.77,141.75,1.78887605]
[1763365259566,100.98,141.77,141.75,2.44887605]
[1763365260352,100.98,141.77,141.75,0.66]
[1763365260553,100.98,141.77,141.75,2.44887605]
[1763365261255,100.98,141.77,141.74,2.44887605]
[1763365261639,100.98,141.77,141.74,1.78887605]
[1763365261864,100.98,141.77,141.75,0.66]
[1763365262839,100.98,141.77,141.75,2.44887605]
[1763365263068,100.98,141.77,141.76,1.78887605]
[1763365263573,100.98,141.77,141.75,2.44887605]
[1763365267170,100.98,141.77,141.74,1.78887605]
[1763365267357,0.6,141.76,141.74,1.78887605]
[1763365267558,101.58,141.77,141.74,1.78887605]
[1763365267948,101.58,141.77,141.74,2.44887605]
[1763365268366,100.98,141.76,141.74,2.44887605]
[1763365268577,0.6,141.8,141.75,2.44887605]
[1763365270375,0.6,141.8,141.76,1.78887605]
[1763365270766,0.6,141.8,141.75,2.44887605]
[1763365272550,108.74151588,141.83,141.76,0.66]
[1763365272779,108.74151588,141.83,141.79,1.78887605]
[1763365272780,0.6,141.83,141.79,1.78887605]
[1763365273156,0.6,141.83,141.77,1.78887605]
[1763365273354,2.38887605,141.83,141.77,2.44887605]
[1763365273669,101.58,141.83,141.78,1.78887605]
[1763365273875,100.98,141.83,141.78,2.44887605]
[1763365274068,0.6,141.82,141.78,1.78887605]
[1763365274249,0.6,141.82,141.74,21.20366116]
[1763365274456,2.38887605,141.82,141.76,1.78887605]
[1763365274652,133.42002769,141.81,141.74,1.78887605]
[1763365274882,134.02002769,141.81,141.74,1.78887605]
[1763365275187,0.6,141.8,141.74,2.44887605]
[1763365275493,1.78887605,141.78,141.73,2.44887605]
[1763365275657,1.78887605,141.76,141.7,1.78887605]
[1763365275976,1.78887605,141.76,141.7,2.44887605]
[1763365276181,0.6,141.75,141.7,2.44887605]
[1763365276472,0.6,141.75,141.7,1.78887605]
[1763365276679,0.6,141.75,141.71,2.44887605]